bitfinex-derivatives/quotes_BNBF0:USTF0_20251219
["timestamp","ask_amount","ask_price","bid_price","bid_amount"]
[1766150122716,1.17996306,847.89,847.15,0.88362619]
[1766150123011,1.17996306,847.88,847.15,0.88362619]
[1766150123213,1.17996306,847.87,847.15,0.88362619]
[1766150123414,1.17996306,847.86,847.15,0.88362619]
[1766150123615,1.17996306,847.85,847.15,0.88362619]
[1766150123819,1.17996306,847.84,847.15,0.88362619]
[1766150124019,1.17996306,847.83,847.15,0.88362619]
[1766150124319,1.17996306,847.82,847.15,0.88362619]
[1766150124519,1.17996306,847.81,847.15,0.88362619]
[1766150124716,1.17996306,847.8,847.15,0.88362619]
[1766150124917,1.17996306,847.79,847.15,0.88362619]
[1766150125122,0.20529399,847.9,847.15,0.88362619]
[1766150125322,1.17994587,847.89,847.15,0.88362619]
[1766150125518,1.17994587,847.88,847.13,0.88362619]
[1766150125721,1.17994587,847.87,847.13,0.88362619]
[1766150125921,1.17994587,847.86,847.13,0.88362619]
[1766150126218,1.17994587,847.85,847.13,0.88362619]
[1766150126521,1.17994587,847.84,847.13,0.88362619]
[1766150126822,1.17994587,847.83,847.13,0.88362619]
[1766150127118,1.17994587,847.82,847.13,0.88362619]
[1766150127418,1.17994587,847.81,847.13,0.88362619]
[1766150127620,1.17994587,847.8,847.13,0.88362619]
[1766150127818,1.17994587,847.79,847.13,0.88362619]
[1766150128019,1.17994587,847.78,847.13,0.88362619]
[1766150128220,1.17994587,847.77,847.13,0.88362619]
[1766150128421,0.20529399,847.9,847.13,0.88362619]
[1766150128620,1.17994907,847.89,847.13,0.88362619]
[1766150128819,1.17994907,847.88,847.13,0.88362619]
[1766150129017,1.17994907,847.87,847.13,0.88362619]
[1766150129222,1.17994907,847.86,847.12,0.88362619]
[1766150129519,1.17994907,847.85,847.12,0.88362619]
[1766150129720,1.17994907,847.84,847.12,0.88362619]
[1766150129919,1.17994907,847.83,847.12,0.88362619]
[1766150130123,1.17994907,847.82,847.12,0.88362619]
[1766150130323,1.17994907,847.81,847.12,0.88362619]
[1766150130523,1.17994907,847.8,847.12,0.88362619]
[1766150130720,1.17994907,847.79,847.12,0.88362619]
[1766150130920,1.17994907,847.78,847.12,0.88362619]
[1766150131119,1.17994907,847.77,847.12,0.88362619]
[1766150131320,0.20529399,847.9,847.12,0.88362619]
[1766150131523,1.18025725,847.89,847.12,0.88362619]
[1766150131822,1.18025725,847.88,847.12,0.88362619]
[1766150132018,1.18025725,847.87,847.12,0.88362619]
[1766150132222,1.18025725,847.86,847.12,0.88362619]
[1766150132420,1.18025725,847.85,847.12,0.88362619]
[1766150132622,1.18025725,847.84,847.12,0.88362619]
[1766150132823,1.18025725,847.83,847.12,0.88362619]
[1766150133025,1.18025725,847.82,847.12,0.88362619]
[1766150133224,1.18025725,847.81,847.12,0.88362619]
[1766150133419,1.18025725,847.8,847.12,0.88362619]
[1766150133620,1.18025725,847.79,847.12,0.88362619]
[1766150133824,1.18025725,847.78,847.1,0.88362619]
[1766150134026,1.18025725,847.77,847.1,0.88362619]
[1766150134221,1.18025725,847.76,847.1,0.88362619]
[1766150134424,0.20529399,847.9,847.1,0.88362619]
[1766150134624,1.1802275,847.89,847.1,0.88362619]
[1766150134822,1.1802275,847.88,847.1,0.88362619]
[1766150135027,1.1802275,847.87,847.1,0.88362619]
[1766150135323,1.1802275,847.86,847.1,0.88362619]
[1766150135525,1.1802275,847.85,847.1,0.88362619]
[1766150135726,1.1802275,847.84,847.1,0.88362619]
[1766150135928,1.1802275,847.83,847.1,0.88362619]
[1766150136126,1.1802275,847.82,847.1,0.88362619]
[1766150136322,1.1802275,847.81,847.1,0.88362619]
[1766150136621,1.1802275,847.8,847.1,0.88362619]
[1766150136825,1.1802275,847.79,847.1,0.88362619]
[1766150137023,1.1802275,847.78,847.1,0.88362619]
[1766150137323,1.1802275,847.77,847.1,0.88362619]
[1766150137523,1.1802275,847.76,847.1,0.88362619]
[1766150137822,0.20529399,847.9,847.1,0.88362619]
[1766150138023,1.18012754,847.89,847.1,0.88362619]
[1766150138327,1.18012754,847.88,847.1,0.88362619]
[1766150138528,1.18012754,847.87,847.1,0.88362619]
[1766150138728,1.18012754,847.86,847.1,0.88362619]
[1766150138925,1.18012754,847.85,847.1,0.88362619]
[1766150139130,1.18012754,847.84,847.1,0.88362619]
[1766150139329,1.18012754,847.83,847.1,0.88362619]
[1766150139529,1.18012754,847.82,847.1,0.88362619]
[1766150139732,1.18012754,847.81,847.1,0.88362619]
[1766150139926,1.18012754,847.8,847.1,0.88362619]
[1766150140226,1.18012754,847.79,847.09,0.88362619]
[1766150140526,1.18012754,847.78,847.09,0.88362619]
[1766150140828,0.20529399,847.9,847.09,0.88362619]
[1766150140829,1.18012754,847.77,847.09,0.88362619]
[1766150141026,1.18012754,847.76,847.09,0.88362619]
[1766150141225,0.20529399,847.9,847.09,0.88362619]
[1766150141430,1.18003738,847.89,847.09,0.88362619]
[1766150141629,1.18003738,847.88,847.09,0.88362619]
[1766150141829,1.18003738,847.87,847.09,0.88362619]
[1766150142027,1.18003738,847.86,847.09,0.88362619]
[1766150142231,1.18003738,847.85,847.09,0.88362619]
[1766150142427,1.18003738,847.84,847.16,0.88362619]
[1766150142733,1.18003738,847.83,847.16,0.88362619]
[1766150142929,0.20529399,847.9,847.16,0.88362619]
[1766150143130,1.18014798,847.89,847.16,0.88362619]
[1766150143329,1.18014798,847.88,847.16,0.88362619]
[1766150143532,1.18014798,847.87,847.16,0.88362619]
[1766150143732,1.18014798,847.86,847.16,0.88362619]
[1766150143929,1.18014798,847.85,847.16,0.88362619]
[1766150144232,1.18014798,847.84,847.16,0.88362619]
[1766150144432,1.18014798,847.83,847.16,0.88362619]
[1766150144634,0.20529399,847.9,847.16,0.88362619]
[1766150144932,1.18018147,847.89,847.16,0.88362619]
[1766150145132,1.18018147,847.88,847.16,0.88362619]
[1766150145340,1.18018147,847.87,847.16,0.88362619]
[1766150145632,1.18018147,847.86,847.16,0.88362619]
[1766150145831,1.18018147,847.85,847.16,0.88362619]
[1766150146030,1.18018147,847.84,847.16,0.88362619]
[1766150146231,1.18018147,847.83,847.16,0.88362619]
[1766150146431,0.20529399,847.9,847.16,0.88362619]
[1766150146629,1.18052028,847.89,847.16,0.88362619]
[1766150146829,1.18052028,847.88,847.16,0.88362619]
[1766150147030,1.18052028,847.87,847.16,0.88362619]
[1766150147330,1.18052028,847.86,847.16,0.88362619]
[1766150147529,1.18052028,847.85,847.16,0.88362619]
[1766150147832,1.18052028,847.84,847.16,0.88362619]
[1766150148030,0.20529399,847.9,847.16,0.88362619]
[1766150148031,1.18052028,847.83,847.16,0.88362619]
[1766150148231,0.20529399,847.9,847.16,0.88362619]
[1766150148429,1.18082895,847.89,847.16,0.88362619]
[1766150148631,1.18082895,847.88,847.16,0.88362619]
[1766150148834,0.20529399,847.9,847.16,0.88362619]
[1766150149131,1.18082904,847.89,847.16,0.88362619]
[1766150149330,1.18082904,847.88,847.16,0.88362619]
[1766150149534,1.18082904,847.87,847.16,0.88362619]
[1766150149829,1.18082904,847.86,847.16,0.88362619]
[1766150150029,1.18082904,847.85,847.16,0.88362619]
[1766150150229,1.18082904,847.84,847.16,0.88362619]
[1766150150429,1.18082904,847.83,847.16,0.88362619]
[1766150150635,1.18082904,847.82,847.16,0.88362619]
[1766150150933,0.20529399,847.9,847.16,0.88362619]
[1766150151130,1.18082914,847.89,847.16,0.88362619]
[1766150151331,1.18082914,847.88,847.16,0.88362619]
[1766150151531,1.18082914,847.87,847.16,0.88362619]
[1766150151834,1.18082914,847.86,847.16,0.88362619]
[1766150152032,1.18082914,847.85,847.16,0.88362619]
[1766150152233,1.18082914,847.84,847.16,0.88362619]
[1766150152434,1.18082914,847.83,847.16,0.88362619]
[1766150152635,1.18082914,847.82,847.16,0.88362619]
[1766150152831,0.20529399,847.9,847.16,0.88362619]
[1766150153033,1.18082918,847.89,847.16,0.88362619]
[1766150153238,1.18082918,847.88,847.16,0.88362619]
[1766150153438,1.18082918,847.87,847.16,0.88362619]
[1766150153739,1.18082918,847.86,847.16,0.88362619]
[1766150153935,1.18082918,847.85,847.16,0.88362619]
[1766150154139,1.18082918,847.84,847.16,0.88362619]
[1766150154335,1.18082918,847.83,847.16,0.88362619]
[1766150154542,1.18082918,847.82,847.16,0.88362619]
[1766150154740,0.20529399,847.9,847.16,0.88362619]
[1766150154940,1.18082895,847.89,847.16,0.88362619]
[1766150155141,1.18082895,847.88,847.16,0.88362619]
[1766150155440,1.18082895,847.87,847.16,0.88362619]
[1766150155641,1.18082895,847.86,847.16,0.88362619]
[1766150155842,1.18082895,847.85,847.16,0.88362619]
[1766150156042,1.18082895,847.84,847.16,0.88362619]
[1766150156337,1.18082895,847.83,847.16,0.88362619]
[1766150156537,1.18082895,847.82,847.16,0.88362619]
[1766150156742,0.20529399,847.9,847.16,0.88362619]
[1766150157042,1.18082895,847.89,847.16,0.88362619]
[1766150157242,1.18082895,847.88,847.16,0.88362619]
[1766150157443,1.18082895,847.87,847.16,0.88362619]
[1766150157644,1.18082895,847.86,847.16,0.88362619]
[1766150157841,1.18082895,847.85,847.16,0.88362619]
[1766150158046,1.18082895,847.84,847.16,0.88362619]
[1766150158246,1.18082895,847.83,847.16,0.88362619]
[1766150158546,1.18082895,847.82,847.16,0.88362619]
[1766150158742,0.20529399,847.9,847.16,0.88362619]
[1766150158949,1.18082895,847.89,847.16,0.88362619]
[1766150159146,1.18082895,847.88,847.16,0.88362619]
[1766150159345,1.18082895,847.87,847.16,0.88362619]
[1766150159543,1.18082895,847.86,847.16,0.88362619]
[1766150159748,1.18082895,847.85,847.16,0.88362619]
[1766150159950,1.18082895,847.84,847.16,0.88362619]
[1766150160149,1.18082895,847.83,847.16,0.88362619]
[1766150160349,1.18082895,847.82,847.16,0.88362619]
[1766150160546,0.20529399,847.9,847.16,0.88362619]
[1766150160746,1.180829,847.89,847.16,0.88362619]
[1766150161050,1.180829,847.88,847.16,0.88362619]
[1766150161251,1.180829,847.87,847.16,0.88362619]
[1766150161452,1.180829,847.86,847.12,0.88362619]
[1766150161648,1.180829,847.85,847.12,0.88362619]
[1766150161852,1.180829,847.84,847.12,0.88362619]
[1766150162053,1.180829,847.83,847.12,0.88362619]
[1766150162252,0.20529399,847.9,847.12,0.88362619]
[1766150162452,1.18088282,847.89,847.12,0.88362619]
[1766150162649,1.18088282,847.88,847.12,0.88362619]
[1766150162953,1.18088282,847.87,847.12,0.88362619]
[1766150163149,1.18088282,847.86,847.12,0.88362619]
[1766150163352,1.18088282,847.85,847.12,0.88362619]
[1766150163648,1.18088282,847.84,847.12,0.88362619]
[1766150163852,1.18088282,847.83,847.12,0.88362619]
[1766150164050,1.18088282,847.82,847.12,0.88362619]
[1766150164254,1.18088282,847.81,847.12,0.88362619]
[1766150164454,1.18088282,847.8,847.12,0.88362619]
[1766150164655,1.18088282,847.79,847.12,0.88362619]
[1766150164857,1.18088282,847.78,847.12,0.88362619]
[1766150165052,0.20529399,847.9,847.12,0.88362619]
[1766150165257,1.1808828,847.89,847.12,0.88362619]
[1766150165458,1.1808828,847.88,847.12,0.88362619]
[1766150165656,1.1808828,847.87,847.12,0.88362619]
[1766150165960,1.1808828,847.86,847.11,0.88362619]
[1766150166255,1.1808828,847.85,847.11,0.88362619]
[1766150166553,1.1808828,847.84,847.11,0.88362619]
[1766150166752,1.1808828,847.83,847.11,0.88362619]
[1766150166954,1.1808828,847.82,847.11,0.88362619]
[1766150167157,1.1808828,847.81,847.11,0.88362619]
[1766150167357,1.1808828,847.8,847.11,0.88362619]
[1766150167555,1.1808828,847.79,847.11,0.88362619]
[1766150167754,1.1808828,847.78,847.11,0.88362619]
[1766150168058,0.20529399,847.9,847.11,0.88362619]
[1766150168257,1.18089622,847.89,847.11,0.88362619]
[1766150168456,1.18089622,847.88,847.11,0.88362619]
[1766150168761,1.18089622,847.87,847.11,0.88362619]
[1766150168960,1.18089622,847.86,847.11,0.88362619]
[1766150169159,1.18089622,847.85,847.11,0.88362619]
[1766150169361,1.18089622,847.84,847.11,0.88362619]
[1766150169556,1.18089622,847.83,847.11,0.88362619]
[1766150169761,0.20529399,847.9,847.11,0.88362619]
[1766150169762,1.18089622,847.82,847.11,0.88362619]
[1766150170062,1.18089622,847.81,847.11,0.88362619]
[1766150170257,1.18089622,847.8,847.09,0.88362619]
[1766150170457,1.18089622,847.79,847.02,0.88362619]
[1766150170661,1.18089622,847.78,847.02,0.88362619]
[1766150170858,1.18089622,847.77,847.02,0.88362619]
[1766150171161,1.18089622,847.76,847.02,0.88362619]
[1766150171357,1.18089622,847.75,847.02,0.88362619]
[1766150171558,1.18089622,847.74,846.91,0.88362619]
[1766150171757,1.18089622,847.73,846.91,0.88362619]
[1766150172057,1.17211205,847.84,846.91,0.88362619]
[1766150172058,1.18089622,847.72,846.91,0.88362619]
[1766150172362,1.18089622,847.71,846.89,0.88362619]
[1766150172559,1.18089622,847.7,846.89,0.88362619]
[1766150172763,1.18089622,847.69,846.89,0.88362619]
[1766150172961,1.18089622,847.68,846.89,0.88362619]
[1766150173163,1.18089622,847.67,846.89,0.88362619]
[1766150173463,1.18089622,847.66,846.88,0.88362619]
[1766150173663,1.18089622,847.65,846.88,0.88362619]
[1766150173864,1.18089622,847.64,846.88,0.88362619]
[1766150174060,1.18089622,847.63,846.88,0.88362619]
[1766150174264,1.18089622,847.62,846.87,0.88362619]
[1766150174461,1.17211205,847.88,846.87,0.88362619]
[1766150174666,1.17934266,847.87,846.87,0.88362619]
[1766150174867,1.17934266,847.86,846.87,0.88362619]
[1766150175061,1.17934266,847.85,846.87,0.88362619]
[1766150175363,1.17934266,847.84,846.86,0.88362619]
[1766150175566,1.17934266,847.83,846.86,0.88362619]
[1766150175766,1.17934266,847.82,846.86,0.88362619]
[1766150175966,1.17934266,847.81,846.86,0.88362619]
[1766150176266,1.17934266,847.8,846.85,0.88362619]
[1766150176464,1.17934266,847.79,846.85,0.88362619]
[1766150176663,1.17934266,847.78,846.85,0.88362619]
[1766150176862,1.17934266,847.77,846.85,0.88362619]
[1766150177063,1.17934266,847.76,846.85,0.88362619]
[1766150177268,1.17934266,847.75,846.84,0.88362619]
[1766150177468,1.17934266,847.74,846.84,0.88362619]
[1766150177663,1.17934266,847.73,846.84,0.88362619]
[1766150177865,1.17934266,847.72,846.84,0.88362619]
[1766150178165,1.17934266,847.71,846.84,0.88362619]
[1766150178365,1.17934266,847.7,846.84,0.88362619]
[1766150178565,1.17934266,847.69,846.84,0.88362619]
[1766150178770,1.17934266,847.68,846.84,0.88362619]
[1766150178965,1.17934266,847.67,846.84,0.88362619]
[1766150179264,1.17934266,847.66,846.83,0.88362619]
[1766150179469,0.20529399,847.9,846.83,0.88362619]
[1766150179666,1.17837866,847.89,846.83,0.88362619]
[1766150179868,1.17837866,847.88,846.83,0.88362619]
[1766150180066,1.17837866,847.87,846.83,0.88362619]
[1766150180264,1.17837866,847.86,846.82,0.88362619]
[1766150180468,1.17837866,847.85,846.82,0.88362619]
[1766150180666,1.17837866,847.84,846.82,0.88362619]
[1766150180866,1.17837866,847.83,846.82,0.88362619]
[1766150181070,1.17837866,847.82,846.82,0.88362619]
[1766150181367,1.17837866,847.81,846.82,0.88362619]
[1766150181669,1.17837866,847.8,846.82,0.88362619]
[1766150181865,1.17837866,847.79,846.82,0.88362619]
[1766150182071,1.17837866,847.78,846.82,0.88362619]
[1766150182271,1.17837866,847.77,846.82,0.88362619]
[1766150182472,1.17837866,847.76,846.82,0.88362619]
[1766150182772,1.17837866,847.75,846.82,0.88362619]
[1766150182968,1.17837866,847.74,846.82,0.88362619]
[1766150183168,1.17837866,847.73,846.82,0.88362619]
[1766150183369,1.17837866,847.72,846.81,0.88362619]
[1766150183674,1.17837866,847.71,846.81,0.88362619]
[1766150183973,1.17837866,847.7,846.81,0.88362619]
[1766150184171,1.17837866,847.69,846.81,0.88362619]
[1766150184369,1.17837866,847.68,846.81,0.88362619]
[1766150184572,0.20529399,847.9,846.81,0.88362619]
[1766150184873,1.17772826,847.89,846.81,0.88362619]
[1766150185166,1.17772826,847.88,846.81,0.88362619]
[1766150185370,1.17772826,847.87,846.81,0.88362619]
[1766150185570,1.17772826,847.86,846.81,0.88362619]
[1766150185768,1.17772826,847.85,846.81,0.88362619]
[1766150185970,1.17772826,847.84,846.81,0.88362619]
[1766150186168,1.17772826,847.83,846.81,0.88362619]
[1766150186368,1.17772826,847.82,846.8,0.88362619]
[1766150186572,1.17772826,847.81,846.8,0.88362619]
[1766150186770,1.17772826,847.8,846.8,0.88362619]
[1766150186974,1.17772826,847.79,846.8,0.88362619]
[1766150187270,1.17772826,847.78,846.8,0.88362619]
[1766150187473,1.17772826,847.77,846.8,0.88362619]
[1766150187769,1.17772826,847.76,846.8,0.88362619]
[1766150187971,1.17772826,847.75,846.8,0.88362619]
[1766150188274,1.17772826,847.74,846.79,0.88362619]
[1766150188474,1.17772826,847.73,846.79,0.88362619]
[1766150188674,1.17772826,847.72,846.79,0.88362619]
[1766150188972,1.17772826,847.71,846.79,0.88362619]
[1766150189172,1.17772826,847.7,846.79,0.88362619]
[1766150189370,0.20529399,847.9,846.79,0.88362619]
[1766150189571,1.17732315,847.89,846.79,0.88362619]
[1766150189776,1.17732315,847.88,846.79,0.88362619]
[1766150189976,1.17732315,847.87,846.79,0.88362619]
[1766150190177,1.17732315,847.86,846.79,0.88362619]
[1766150190374,1.17732315,847.85,846.79,0.88362619]
[1766150190573,1.17732315,847.84,846.79,0.88362619]
[1766150190772,1.17732315,847.83,846.79,0.88362619]
[1766150190976,1.17732315,847.82,846.79,0.88362619]
[1766150191277,1.17732315,847.81,846.79,0.88362619]
[1766150191474,1.17732315,847.8,846.79,0.88362619]
[1766150191674,1.17732315,847.79,846.79,0.88362619]
[1766150191875,1.17732315,847.78,846.79,0.88362619]
[1766150192074,1.17732315,847.77,846.79,0.88362619]
[1766150192273,1.17732315,847.76,846.78,0.88362619]
[1766150192476,1.17732315,847.75,846.78,0.88362619]
[1766150192677,1.17732315,847.74,846.78,0.88362619]
[1766150192876,1.17732315,847.73,846.78,0.88362619]
[1766150193077,1.17732315,847.72,846.78,0.88362619]
[1766150193278,1.17732315,847.71,846.78,0.88362619]
[1766150193477,0.20529399,847.9,846.78,0.88362619]
[1766150193681,1.17709228,847.89,846.78,0.88362619]
[1766150193881,1.17709228,847.88,846.78,0.88362619]
[1766150194182,1.17709228,847.87,846.78,0.88362619]
[1766150194382,1.17709228,847.86,846.78,0.88362619]
[1766150194578,1.17709228,847.85,846.78,0.88362619]
[1766150194779,1.17709228,847.84,846.78,0.88362619]
[1766150194978,1.17709228,847.83,846.78,0.88362619]
[1766150195182,1.17709228,847.82,846.78,0.88362619]
[1766150195379,1.17709228,847.81,846.87,0.88362619]
[1766150195581,1.17709228,847.8,846.87,0.88362619]
[1766150195785,1.17211205,848.05,846.87,0.88362619]
[1766150195984,1.1773516,848.04,846.87,0.88362619]
[1766150196281,1.1773516,848.03,846.98,0.88362619]
[1766150196581,1.1773516,848.02,846.98,0.88362619]
[1766150196782,1.1773516,848.01,846.98,0.88362619]
[1766150196981,1.1773516,848.0,846.98,0.88362619]
[1766150197186,1.1773516,847.99,846.98,0.88362619]
[1766150197386,1.1773516,847.98,846.98,0.88362619]
[1766150197586,0.2053061,847.79,846.98,0.88362619]
[1766150203685,0.2053061,847.79,847.01,0.88362619]
[1766150204386,0.2053061,847.79,847.03,0.88362619]
[1766150205085,0.2053061,847.79,847.07,0.88362619]
[1766150207693,52.86856129,848.38,847.26,0.88362619]
[1766150207988,0.20527159,847.9,847.26,0.88362619]
[1766150208188,52.86856129,848.38,847.26,0.88362619]
[1766150208388,0.20525282,847.9,847.25,0.88362619]
[1766150208587,52.86856129,848.38,847.25,0.88362619]
[1766150208789,1.17758775,848.37,847.25,0.88362619]
[1766150208990,1.17758775,848.36,847.25,0.88362619]
[1766150209190,1.17758775,848.35,847.24,0.88362619]
[1766150209395,1.17758775,848.34,847.24,0.88362619]
[1766150209594,1.17758775,848.33,847.24,0.88362619]
[1766150209793,1.17758775,848.32,847.24,0.88362619]
[1766150209996,0.20525585,848.07,847.24,0.88362619]
[1766150210295,0.20525585,848.07,847.23,0.88362619]
[1766150211291,0.20525585,848.07,847.22,0.88362619]
[1766150212296,0.20525585,848.07,847.21,0.88362619]
[1766150213197,0.20525585,848.07,847.2,0.88362619]
[1766150214197,0.20525585,848.07,847.19,0.88362619]
[1766150216198,0.20525585,848.07,847.18,0.88362619]
[1766150217294,0.20525585,848.07,847.17,0.88362619]
[1766150218301,0.20525585,848.07,847.16,0.88362619]
[1766150221302,0.20525585,848.07,847.15,0.88362619]
[1766150223301,0.20525585,848.07,847.14,0.88362619]
[1766150224303,0.20525585,848.07,847.13,0.88362619]
[1766150226208,0.20525585,848.07,847.12,0.88362619]
[1766150227505,0.20525585,848.07,846.97,0.88362619]
[1766150233216,0.20525585,848.07,846.98,0.88362619]
[1766150236217,0.20525585,848.07,846.99,0.88362619]
[1766150236717,0.20525585,848.07,846.98,0.88362619]
[1766150237218,0.20525585,848.07,846.99,0.88362619]
[1766150239216,0.20525585,848.07,847.0,0.88362619]
[1766150241219,0.20525585,848.07,847.01,0.88362619]
[1766150242322,0.20525585,848.07,847.02,0.88362619]
[1766150243018,0.20525585,848.07,847.01,0.88362619]
[1766150243321,0.20525585,848.07,847.02,0.88362619]
[1766150244225,0.20525585,848.07,847.03,0.88362619]
[1766150245225,0.20525585,848.07,846.88,1.17499347]
[1766150245226,0.20525585,848.07,847.04,0.88362619]
[1766150247229,0.20525585,848.07,847.05,0.88362619]
[1766150248330,0.20525585,848.07,847.06,0.88362619]
[1766150249426,0.20525585,848.07,847.07,0.88362619]
[1766150250029,0.20525585,848.07,847.09,0.88362619]
[1766150250230,0.20525585,848.07,847.1,0.88362619]
[1766150250530,0.20525585,848.07,847.13,0.88362619]
[1766150251229,0.20525585,848.07,847.14,0.88362619]
[1766150252130,0.20525585,848.07,847.34,0.88362619]
[1766150252331,0.20525585,848.07,847.38,0.88362619]
[1766150254435,0.20525585,848.07,847.07,1.76249021]
[1766150254436,0.20525585,848.07,847.39,0.88362619]
[1766150255235,0.20525585,848.07,847.4,0.88362619]
[1766150261943,0.20525585,848.07,847.09,1.76249021]
[1766150262139,0.20525585,848.07,846.55,0.01248002]
[1766150262440,0.20525585,848.07,846.5,0.20525766]
[1766150281258,1.17454742,848.06,846.5,0.20525766]
[1766150281456,1.17454742,848.05,846.5,0.20525766]
[1766150281654,1.17454742,848.04,846.5,0.20525766]
[1766150281853,1.17454742,848.03,846.5,0.20525766]
[1766150282053,1.17454742,848.02,846.5,0.20525766]
[1766150282354,1.17454742,848.01,846.5,0.20525766]
[1766150282552,1.17454742,848.0,846.5,0.20525766]
[1766150282756,1.17454742,847.99,846.5,0.20525766]
[1766150282955,1.17454742,847.98,846.5,0.20525766]
[1766150283256,1.17454742,847.97,846.5,0.20525766]
[1766150283455,0.20525585,848.07,846.5,0.20525766]
[1766150283655,1.17414592,848.06,846.5,0.20525766]
[1766150283854,1.17414592,848.05,846.5,0.20525766]
[1766150284057,1.17414592,848.04,846.5,0.20525766]
[1766150284356,1.17414592,848.03,846.5,0.20525766]
[1766150284556,1.17414592,848.02,846.5,0.20525766]
[1766150284751,0.20525585,848.07,846.5,0.20525766]
[1766150284752,1.17414592,848.01,846.5,0.20525766]
[1766150284953,1.17414592,848.0,846.5,0.20525766]
[1766150285153,1.17414592,847.99,846.5,0.20525766]
[1766150285356,1.17414592,847.98,846.5,0.20525766]
[1766150285552,0.20525585,848.07,846.5,0.20525766]
[1766150285756,1.1739051,848.06,846.5,0.20525766]
[1766150285955,1.1739051,848.05,846.5,0.20525766]
[1766150286156,1.1739051,848.04,846.95,0.88121043]
[1766150286460,1.1739051,848.03,846.95,0.88121043]
[1766150286660,1.1739051,848.02,846.95,0.88121043]
[1766150286860,1.1739051,848.01,846.95,0.88121043]
[1766150287162,1.1739051,848.0,846.95,0.88121043]
[1766150287356,1.1739051,847.99,846.95,0.88121043]
[1766150287557,1.1739051,847.98,846.95,0.88121043]
[1766150287758,0.20525585,848.07,846.94,0.88121043]
[1766150287956,1.17380449,848.06,846.94,0.88121043]
[1766150288158,1.17380449,848.05,846.94,0.88121043]
[1766150288458,1.17380449,848.04,846.94,0.88121043]
[1766150288659,1.17380449,848.03,846.94,0.88121043]
[1766150288862,1.17380449,848.02,846.94,0.88121043]
[1766150289161,1.17380449,848.01,846.94,0.88121043]
[1766150289357,1.17380449,848.0,846.94,0.88121043]
[1766150289561,1.17380449,847.99,846.94,0.88121043]
[1766150289759,0.20525585,848.07,846.94,0.88121043]
[1766150289960,1.17363363,848.06,846.94,0.88121043]
[1766150290159,1.17363363,848.05,846.94,0.88121043]
[1766150290362,1.17363363,848.04,846.94,0.88121043]
[1766150290561,1.17363363,848.03,846.94,0.88121043]
[1766150290760,1.17363363,848.02,846.94,0.88121043]
[1766150291062,1.17363363,848.01,846.94,0.88121043]
[1766150291261,1.17363363,848.0,846.93,0.88121043]
[1766150291460,0.20525585,848.07,846.93,0.88121043]
[1766150291760,1.1734775,848.06,846.93,0.88121043]
[1766150291958,1.1734775,848.05,846.98,0.88121043]
[1766150292161,1.1734775,848.04,846.97,0.88121043]
[1766150292364,0.20525585,848.07,846.97,0.88121043]
[1766150292561,1.17343263,848.06,846.97,0.88121043]
[1766150292764,1.17343263,848.05,846.97,0.88121043]
[1766150292965,1.17343263,848.04,846.97,0.88121043]
[1766150293163,0.20525585,848.07,846.97,0.88121043]
[1766150293363,1.17343406,848.06,846.97,0.88121043]
[1766150293567,1.17343406,848.05,846.97,0.88121043]
[1766150293867,1.17343406,848.04,846.97,0.88121043]
[1766150294163,0.20525585,848.07,846.97,0.88121043]
[1766150294367,1.17339331,848.06,846.97,0.88121043]
[1766150294566,1.17339331,848.05,846.97,0.88121043]
[1766150294766,1.17339331,848.04,846.97,0.88121043]
[1766150294962,0.20525585,848.07,846.97,0.88121043]
[1766150295165,1.17335028,848.06,846.97,0.88121043]
[1766150295362,1.17335028,848.05,846.96,0.88121043]
[1766150295567,1.17335028,848.04,846.96,0.88121043]
[1766150295769,1.17327557,848.03,846.91,0.88121043]
[1766150295969,1.17327557,848.02,846.91,0.88121043]
[1766150296264,1.17327557,848.01,846.9,0.88121043]
[1766150296567,1.17327557,848.0,846.9,0.88121043]
[1766150296766,1.17327557,847.99,846.9,0.88121043]
[1766150296964,0.20525585,848.07,846.9,0.88121043]
[1766150297166,1.17318401,848.06,846.9,0.88121043]
[1766150297367,1.17318401,848.05,846.9,0.88121043]
[1766150297568,1.17318401,848.04,846.9,0.88121043]
[1766150297765,1.17318401,848.03,846.9,0.88121043]
[1766150297969,1.17318401,848.02,846.9,0.88121043]
[1766150298167,1.17318401,848.01,846.89,0.88121043]
[1766150298366,1.17318401,848.0,846.87,0.88121043]
[1766150298565,1.17318401,847.99,846.87,0.88121043]
[1766150298769,1.17318401,847.98,846.87,0.88121043]
[1766150298967,1.17318401,847.97,846.87,0.88121043]
[1766150299166,0.20525585,848.07,846.87,0.88121043]
[1766150299465,1.17292296,848.06,846.87,0.88121043]
[1766150299665,1.17292296,848.05,846.87,0.88121043]
[1766150299868,1.17292296,848.04,846.87,0.88121043]
[1766150300068,1.17292296,848.03,846.87,0.88121043]
[1766150300266,1.17292296,848.02,846.87,0.88121043]
[1766150300568,1.17292296,848.01,846.87,0.88121043]
[1766150300767,1.17292296,848.0,846.87,0.88121043]
[1766150300968,1.17292296,847.99,846.87,0.88121043]
[1766150301169,1.17292296,847.98,846.86,0.88121043]
[1766150301370,0.20525585,848.07,846.86,0.88121043]
[1766150301564,1.17310996,848.06,846.86,0.88121043]
[1766150301766,1.17310996,848.05,846.86,0.88121043]
[1766150301970,1.17310996,848.04,846.86,0.88121043]